bitfinex/quotes_BTCUSD_20241124
["timestamp","ask_amount","ask_price","bid_price","bid_amount"]
[1732470921399,0.1849276,95826.0,95825.0,0.10201427]
[1732470922274,0.1849276,95826.0,95824.0,0.0017068]
[1732470922275,0.38288183,95825.0,95824.0,0.0017068]
[1732470922473,0.38288183,95825.0,95824.0,0.10372107]
[1732470922680,0.38621907,95825.0,95824.0,0.0017068]
[1732470925376,0.38625907,95825.0,95824.0,0.0017068]
[1732470926709,0.57151507,95825.0,95824.0,0.0017068]
[1732470926956,0.46715907,95825.0,95824.0,0.0017068]
[1732470927875,0.57151507,95825.0,95824.0,0.0017068]
[1732470928543,0.46715907,95825.0,95824.0,0.0017068]
[1732470929832,0.38625907,95825.0,95824.0,0.0017068]
[1732470933811,0.38425907,95825.0,95824.0,0.0538848]
[1732470934015,0.38425907,95825.0,95824.0,0.0017068]
[1732470935516,0.56951507,95825.0,95824.0,0.0017068]
[1732470935748,0.57151507,95825.0,95824.0,0.0017068]
[1732470936207,0.46715907,95825.0,95824.0,0.0017068]
[1732470936473,0.57151507,95825.0,95824.0,0.0017068]
[1732470938156,0.77151507,95825.0,95824.0,0.0017068]
[1732470938389,0.80539576,95825.0,95824.0,0.0017068]
[1732470939141,0.60539576,95825.0,95824.0,0.0017068]
[1732470939379,0.46715907,95825.0,95824.0,0.0017068]
[1732470940230,0.57151507,95825.0,95824.0,0.0017068]
[1732470940661,0.46715907,95825.0,95824.0,0.0017068]
[1732470945129,0.1849673,95825.0,95824.0,0.0538848]
[1732470945362,0.1849673,95825.0,95824.0,0.15589907]
[1732470945832,0.56921507,95825.0,95824.0,0.0017068]
[1732470947169,0.60251897,95825.0,95824.0,0.0017068]
[1732470947401,0.46485907,95825.0,95824.0,0.0017068]
[1732470947616,0.56921507,95825.0,95824.0,0.0017068]
[1732470948509,0.28126901,95825.0,95824.0,0.0017068]
[1732470948739,0.46485907,95825.0,95824.0,0.0017068]
[1732470951175,0.46485907,95825.0,95824.0,0.00114764]
[1732470953329,0.46285907,95825.0,95824.0,0.00114764]
[1732470953546,0.20066901,95825.0,95824.0,0.00114764]
[1732470953788,0.18363006,95825.0,95824.0,0.15533991]
[1732470954000,4e-05,95825.0,95824.0,0.15533991]
[1732470954456,0.18363006,95825.0,95824.0,0.15533991]
[1732470956652,4e-05,95825.0,95824.0,0.15533991]
[1732470957745,0.17363006,95832.0,95824.0,0.10316191]
[1732470957964,0.19929177,95837.0,95831.0,0.052175]
[1732470958214,0.17363006,95832.0,95831.0,0.052175]
[1732470958426,0.37292183,95837.0,95836.0,0.052172]
[1732470959089,0.37292183,95837.0,95828.0,0.052176]
[1732470959306,0.37492183,95837.0,95834.0,0.052173]
[1732470959515,0.37492183,95837.0,95835.0,0.052172]
[1732470959931,0.37492183,95837.0,95833.0,0.052173]
[1732470959932,0.002,95836.0,95830.0,0.052175]
[1732470960151,0.002,95835.0,95834.0,0.052173]
[1732470960369,0.002,95836.0,95835.0,0.052173]
[1732470960580,0.37492183,95837.0,95835.0,0.052173]
[1732470960795,0.37492183,95837.0,95835.0,0.052172]
[1732470961229,0.37492183,95837.0,95834.0,0.052173]
[1732470961448,0.37292183,95837.0,95836.0,0.052172]
[1732470964405,0.19929177,95845.0,95836.0,0.15418627]
[1732470964618,0.17363006,95842.0,95841.0,0.052169]
[1732470964829,4e-05,95850.0,95841.0,0.052169]
[1732470964830,0.17367006,95850.0,95849.0,0.052165]
[1732470965064,4e-05,95850.0,95849.0,0.32717927]
[1732470965488,0.17363006,95864.0,95849.0,0.32717927]
[1732470965489,0.19929177,95875.0,95863.0,0.052157]
[1732470965732,0.19929177,95875.0,95857.0,0.05216]
[1732470965733,0.17363006,95867.0,95866.0,0.052156]
[1732470968840,0.17534687,95867.0,95866.0,0.052156]
[1732470969691,0.17538687,95867.0,95866.0,0.052156]
[1732470976007,0.17363006,95857.0,95856.0,0.052161]
[1732470976506,0.17534241,95857.0,95856.0,0.052161]
[1732470977138,0.17734241,95857.0,95856.0,0.052161]
[1732470977347,0.17534241,95857.0,95856.0,0.052161]
[1732470978011,0.00171235,95857.0,95856.0,0.15417527]
[1732470978226,0.17363006,95860.0,95856.0,0.15417527]
[1732470978450,0.17363006,95860.0,95859.0,0.052159]
[1732470978677,0.17363006,95860.0,95859.0,0.15417327]
[1732470980629,0.17363006,95864.0,95863.0,0.052157]
[1732470980833,0.17363006,95864.0,95863.0,0.15417127]
[1732470981791,0.17363006,95864.0,95863.0,0.10201427]
[1732470982056,0.17363006,95852.0,95838.0,0.02370823]
[1732470982276,0.17363006,95852.0,95836.0,0.231]
[1732470982277,0.17363006,95852.0,95851.0,0.052164]
[1732470982479,0.17363006,95852.0,95851.0,0.15417827]
[1732470982686,0.17363006,95852.0,95851.0,0.30417827]
[1732470984804,0.17363006,95852.0,95851.0,0.33815304]
[1732470986310,0.17113006,95852.0,95851.0,0.33815304]
[1732470988223,0.17117006,95852.0,95851.0,0.33815304]
[1732470988651,0.17075546,95852.0,95851.0,0.33815304]
[1732470989323,0.17075546,95852.0,95835.0,0.00996]
[1732470989324,0.17071546,95836.0,95835.0,0.00996]
[1732470989550,0.24861546,95836.0,95835.0,0.00996]
[1732470989761,0.59935123,95836.0,95835.0,0.00996]
[1732470991105,0.59735123,95836.0,95835.0,0.00996]
[1732470991294,0.59935123,95836.0,95835.0,0.00996]
[1732470991796,0.52928176,95836.0,95835.0,0.00996]
[1732470992002,0.63362576,95836.0,95835.0,0.00996]
[1732470993080,0.83362576,95836.0,95835.0,0.00996]
[1732470994215,0.83366576,95836.0,95835.0,0.00996]
[1732470999536,0.63366576,95836.0,95835.0,0.00996]
[1732471000666,0.83366576,95836.0,95835.0,0.00996]
[1732471005145,0.83366576,95836.0,95835.0,0.0108157]
[1732471013338,0.63366576,95836.0,95835.0,0.0108157]
[1732471013557,0.37004723,95836.0,95835.0,0.0108157]
[1732471013790,0.36722099,95836.0,95835.0,0.0108157]
[1732471014221,0.16992922,95836.0,95835.0,0.0108157]
[1732471014456,0.16792922,95840.0,95839.0,0.05217]
[1732471014898,0.16792922,95836.0,95835.0,0.0108157]
[1732471015121,0.36722099,95836.0,95835.0,0.0108157]
[1732471015333,0.47156499,95836.0,95835.0,0.0108157]
[1732471015931,0.47356499,95836.0,95835.0,0.0108157]
[1732471022328,0.47360499,95836.0,95835.0,0.0108157]
[1732471023964,0.16796922,95836.0,95835.0,0.0108157]
[1732471024188,0.16996922,95836.0,95835.0,0.0108157]
[1732471024396,0.16796922,95836.0,95835.0,0.16500297]
[1732471024613,0.16796922,95836.0,95835.0,0.11282997]
[1732471024829,0.16796922,95836.0,95835.0,0.16500297]
[1732471025271,0.16796922,95836.0,95835.0,0.11282997]
[1732471025272,0.36726099,95836.0,95835.0,0.11282997]
[1732471025487,0.36926099,95836.0,95835.0,0.11282997]
[1732471026341,0.36726099,95836.0,95835.0,0.11282997]
[1732471027003,0.36626099,95836.0,95835.0,0.11282997]
[1732471028316,0.36797279,95836.0,95835.0,0.11282997]
[1732471029375,0.16868102,95836.0,95835.0,0.11282997]
[1732471029622,0.36797279,95836.0,95835.0,0.11282997]
[1732471030077,0.16868102,95836.0,95835.0,0.11282997]
[1732471030307,0.16868102,95836.0,95835.0,0.16500297]
[1732471030542,0.16868102,95836.0,95835.0,0.11282997]
[1732471030986,0.17068102,95836.0,95835.0,0.11282997]
[1732471031196,0.16868102,95836.0,95835.0,0.11282997]
[1732471031867,0.17068102,95836.0,95835.0,0.0108157]
[1732471032331,0.47431679,95836.0,95835.0,0.0108157]
[1732471033426,0.51771679,95836.0,95835.0,0.0108157]
[1732471033639,0.51971679,95836.0,95835.0,0.0108157]
[1732471035003,0.71971679,95836.0,95835.0,0.0108157]
[1732471035227,0.80061679,95836.0,95835.0,0.0108157]
[1732471037094,0.77237732,95836.0,95835.0,0.0108157]
[1732471038239,0.77241732,95836.0,95835.0,0.0108157]
[1732471038516,0.57241732,95836.0,95835.0,0.0108157]
[1732471042688,0.57241732,95836.0,95835.0,0.0108157]
[1732471044215,0.77241732,95836.0,95835.0,0.0108157]
[1732471057920,0.87443159,95836.0,95835.0,0.0108157]
[1732471058147,1.02643159,95836.0,95835.0,0.0108157]
[1732471059872,1.22643159,95836.0,95835.0,0.0108157]
[1732471061727,1.22643159,95836.0,95832.0,9e-07]
[1732471061728,1.14406952,95833.0,95832.0,9e-07]
[1732471061933,1.24608379,95833.0,95832.0,9e-07]
[1732471062736,0.74202152,95825.0,95824.0,0.00114764]
[1732471062943,1.22109179,95825.0,95824.0,0.00114764]
[1732471064234,1.22309179,95825.0,95824.0,0.00114764]
[1732471064987,1.25714419,95825.0,95824.0,0.00114764]
[1732471067387,1.28014419,95825.0,95824.0,0.00114764]
[1732471067833,1.28018419,95825.0,95824.0,0.00114764]
[1732471068769,1.30134788,95825.0,95824.0,0.00114764]
[1732471081314,1.27834788,95825.0,95824.0,0.00114764]
[1732471083381,1.33236646,95825.0,95824.0,6.4e-07]
[1732471083621,1.30134788,95825.0,95824.0,6.4e-07]
[1732471088888,1.29934788,95825.0,95824.0,6.4e-07]
[1732471089127,1.27634788,95825.0,95824.0,6.4e-07]
[1732471089565,0.93761813,95825.0,95824.0,6.4e-07]
[1732471089809,1.27634788,95825.0,95824.0,6.4e-07]
[1732471090044,1.05518419,95825.0,95824.0,6.4e-07]
[1732471090271,1.25518419,95825.0,95824.0,6.4e-07]
[1732471090505,1.05518419,95825.0,95824.0,6.4e-07]
[1732471090766,1.25518419,95825.0,95824.0,6.4e-07]
[1732471091947,1.25718419,95825.0,95824.0,6.4e-07]
[1732471092165,1.25518419,95825.0,95824.0,6.4e-07]
[1732471095586,1.25718419,95825.0,95824.0,6.4e-07]
[1732471096065,1.25518419,95825.0,95824.0,6.4e-07]
[1732471101157,1.25718419,95825.0,95824.0,6.4e-07]
[1732471101368,1.05718419,95825.0,95824.0,6.4e-07]
[1732471101590,1.25718419,95825.0,95824.0,6.4e-07]
[1732471104487,1.25518419,95825.0,95824.0,6.4e-07]
[1732471104928,1.25618419,95825.0,95824.0,6.4e-07]
[1732471105638,1.27918419,95825.0,95824.0,6.4e-07]
[1732471105848,1.28118419,95825.0,95824.0,6.4e-07]
[1732471106290,1.31362876,95825.0,95824.0,6.4e-07]
[1732471107528,1.31362876,95825.0,95800.0,0.71426284]
[1732471107529,0.54002152,95801.0,95800.0,0.71426284]
[1732471107740,0.79642352,95783.0,95753.0,0.00118]
[1732471107976,1.19833779,95783.0,95753.0,0.00118]
[1732471108190,1.24813779,95783.0,95753.0,0.00118]
[1732471108398,1.01942452,95782.0,95781.0,2e-07]
[1732471108608,1.12143879,95782.0,95781.0,2e-07]
[1732471108827,0.64445452,95755.0,95753.0,0.00118]
[1732471109072,0.74646879,95755.0,95753.0,0.00118]
[1732471109302,0.84682406,95755.0,95753.0,0.00118]
[1732471111491,0.88006816,95755.0,95753.0,0.00118]
[1732471112600,1.03006816,95755.0,95753.0,0.00118]
[1732471113045,1.30286816,95755.0,95753.0,0.00118]
[1732471113279,0.13872975,95706.0,95705.0,0.0455]
[1732471113712,0.14072975,95706.0,95705.0,0.0455]
[1732471116728,0.14172975,95706.0,95705.0,0.0455]
[1732471117193,0.14072975,95704.0,95696.0,0.0826]
[1732471117850,0.13872975,95704.0,95696.0,0.134848]
[1732471118085,0.13872975,95704.0,95696.0,0.0826]
[1732471118767,0.14072975,95704.0,95696.0,0.0826]
[1732471120423,0.54652379,95704.0,95690.0,0.0455]
[1732471120645,0.74652379,95704.0,95690.0,0.0455]
[1732471120876,0.34002152,95704.0,95703.0,0.0009154]
[1732471124857,0.74652379,95704.0,95703.0,0.0009154]
[1732471125301,0.44450952,95704.0,95703.0,0.0009154]
[1732471125515,0.34002152,95704.0,95703.0,0.0009154]
[1732471125747,0.14072975,95704.0,95703.0,0.0009154]
[1732471125991,0.34002152,95704.0,95703.0,0.0009154]
[1732471132883,0.001,95706.0,95703.0,0.0009154]
[1732471132884,0.001,95706.0,95705.0,0.052243]
[1732471133109,0.13872975,95717.0,95709.0,0.052241]
[1732471133331,0.2,95743.0,95711.0,0.15]
[1732471133607,0.2,95743.0,95729.0,0.05223]
[1732471133608,0.19929177,95736.0,95729.0,0.05223]
[1732471133832,0.002,95727.0,95713.0,0.15]
[1732471134050,0.002,95727.0,95718.0,0.052236]
[1732471134271,0.002,95727.0,95716.0,0.052237]
[1732471134492,0.002,95720.0,95717.0,0.15]
[1732471134717,0.002,95718.0,95717.0,0.202237]
[1732471135459,0.002,95718.0,95717.0,0.052237]
[1732471135911,0.002,95731.0,95723.0,0.052233]
[1732471136582,0.002,95731.0,95723.0,0.104466]
[1732471136805,0.002,95731.0,95723.0,0.052233]
[1732471137031,0.002,95731.0,95724.0,0.052233]
[1732471137711,0.30374577,95736.0,95711.0,0.05224]
[1732471137712,0.002,95727.0,95720.0,0.15]
[1732471137937,0.002,95727.0,95722.0,0.052234]
[1732471138154,0.002,95724.0,95720.0,0.202235]
[1732471138592,0.002,95721.0,95720.0,0.15]
[1732471138836,0.002,95720.0,95719.0,0.052236]
[1732471140235,0.002,95731.0,95722.0,0.052234]
[1732471140430,0.002,95731.0,95718.0,0.052236]
[1732471140642,0.002,95731.0,95723.0,0.052233]
[1732471140850,0.002,95731.0,95724.0,0.052233]
[1732471141070,0.002,95731.0,95721.0,0.052234]
[1732471141272,0.002,95731.0,95726.0,0.052231]
[1732471141522,0.002,95731.0,95722.0,0.052234]
[1732471141903,0.002,95731.0,95723.0,0.052233]
[1732471142120,0.002,95731.0,95724.0,0.052232]
[1732471142324,0.002,95731.0,95723.0,0.052234]
[1732471142497,0.002,95731.0,95719.0,0.052236]
[1732471142498,0.002,95731.0,95724.0,0.052233]
[1732471142867,0.002,95731.0,95728.0,0.052231]
[1732471143275,0.002,95732.0,95725.0,0.052232]
[1732471143457,0.002,95731.0,95720.0,0.15]
[1732471143672,0.002,95734.0,95714.0,0.104476]
[1732471143882,0.20129177,95736.0,95715.0,0.15]
[1732471144094,0.002,95732.0,95726.0,0.052232]
[1732471144303,0.002,95734.0,95729.0,0.05223]
[1732471144517,0.002,95734.0,95716.0,0.15]
[1732471144518,0.0017128,95731.0,95725.0,0.052232]
[1732471145383,0.0017128,95731.0,95730.0,0.05223]
[1732471146381,0.0017128,95731.0,95728.0,0.05223]
[1732471146382,0.0017128,95731.0,95724.0,0.052233]
[1732471146685,0.0037128,95731.0,95730.0,0.05223]
[1732471147230,0.0017128,95731.0,95730.0,0.05223]
[1732471149360,0.0017128,95731.0,95730.0,0.0559517]
[1732471149971,0.0017128,95731.0,95730.0,0.15901059]
[1732471150174,0.0017128,95731.0,95730.0,0.38976597]
[1732471150406,0.0017128,95731.0,95730.0,0.46036597]
[1732471159638,0.001,95755.0,95739.0,0.00070823]
[1732471159887,0.001,95755.0,95754.0,0.052217]
[1732471160015,0.001,95755.0,95754.0,0.30423127]
[1732471161150,0.001,95755.0,95754.0,0.052217]
[1732471162492,0.0803,95755.0,95747.0,0.0037217]
[1732471162712,0.0823,95755.0,95749.0,0.052219]
[1732471162918,0.0823,95755.0,95748.0,0.05222]
[1732471163151,0.0823,95755.0,95751.0,0.052218]
[1732471163358,0.0803,95755.0,95747.0,0.0037217]
[1732471163564,0.11634035,95755.0,95747.0,0.0037217]
[1732471163764,0.002,95751.0,95750.0,0.052219]
[1732471164303,0.002,95752.0,95751.0,0.052218]
[1732471164529,0.0823,95755.0,95751.0,0.052218]
[1732471164729,0.0823,95755.0,95752.0,0.052217]
[1732471165334,0.0823,95755.0,95750.0,0.052219]
[1732471165609,0.002,95751.0,95747.0,0.0037217]
[1732471165812,0.002,95751.0,95750.0,0.052219]
[1732471167021,0.002,95751.0,95747.0,0.0037217]
[1732471167264,0.002,95751.0,95748.0,0.05222]
[1732471167468,0.0823,95755.0,95751.0,0.052218]
[1732471167691,0.0823,95755.0,95752.0,0.052217]
[1732471168584,0.0823,95755.0,95752.0,0.104434]
[1732471168803,0.0823,95755.0,95752.0,0.052217]
[1732471169033,0.0823,95755.0,95747.0,0.0037217]
[1732471169034,0.0823,95755.0,95753.0,0.052217]
[1732471169481,0.0823,95755.0,95747.0,0.0037217]
[1732471169482,0.0823,95755.0,95751.0,0.052218]
[1732471169683,0.0823,95755.0,95751.0,0.104436]
[1732471169913,0.0823,95755.0,95753.0,0.052217]
[1732471170083,0.0823,95755.0,95754.0,0.052217]
[1732471170570,0.001,95755.0,95754.0,0.052217]
[1732471171013,0.001,95755.0,95754.0,0.30423127]
[1732471171253,0.001,95755.0,95754.0,0.33808387]
[1732471172189,1.001,95755.0,95754.0,0.33808387]
[1732471173700,1.001,95755.0,95754.0,0.3387921]
[1732471175214,1.001,95755.0,95754.0,0.33808387]
[1732471176136,1.001,95755.0,95754.0,0.36108387]
[1732471179985,1.0027128,95755.0,95754.0,0.36108387]
[1732471202416,1.0027128,95755.0,95754.0,0.30423127]
[1732471202631,0.002,95754.0,95731.0,0.0008563]
[1732471202860,1.1311128,95755.0,95753.0,0.052217]
[1732471203067,1.1311128,95755.0,95750.0,0.052219]
[1732471203301,0.002,95751.0,95750.0,0.052219]
[1732471203536,0.002,95754.0,95752.0,0.052217]
[1732471203793,0.002,95751.0,95750.0,0.052218]
[1732471204006,0.002,95754.0,95751.0,0.052218]
[1732471204239,0.002,95754.0,95749.0,0.052219]
[1732471204458,0.002,95754.0,95751.0,0.052218]
[1732471204674,0.002,95754.0,95752.0,0.052218]
[1732471204908,0.002,95753.0,95752.0,0.052218]
[1732471205123,0.002,95752.0,95751.0,0.052218]
[1732471205340,1.1291128,95755.0,95744.0,0.15]
[1732471205341,0.002,95754.0,95744.0,0.15]
[1732471205565,0.081,95753.0,95747.0,0.0559417]
[1732471205768,0.081,95753.0,95747.0,0.0037217]
[1732471206009,1.0520128,95755.0,95747.0,0.0037217]
[1732471206010,0.002,95748.0,95747.0,0.0037217]
[1732471206236,0.1328,95748.0,95747.0,0.0037217]
[1732471206692,0.23724,95748.0,95747.0,0.0037217]
[1732471206921,0.43653177,95748.0,95747.0,0.0037217]
[1732471207143,0.43653177,95748.0,95731.0,0.0008563]
[1732471207144,0.002,95732.0,95731.0,0.0008563]
[1732471207356,0.1328,95732.0,95731.0,0.0008563]
[1732471207595,0.237258,95732.0,95731.0,0.0008563]
[1732471207825,0.1328,95732.0,95731.0,0.0008563]
[1732471208042,0.1328,95732.0,95731.0,0.0530853]
[1732471208043,0.1308,95732.0,95731.0,0.0530853]
[1732471208290,1.0027128,95755.0,95741.0,0.052224]
[1732471208291,0.0498,95742.0,95741.0,0.052224]
[1732471208512,1.0027128,95755.0,95753.0,0.052217]
[1732471208748,1.0027128,95755.0,95733.0,0.15104446]
[1732471208749,0.24909177,95754.0,95733.0,0.15104446]
[1732471208982,0.002,95747.0,95743.0,0.052222]
[1732471209198,0.002,95740.0,95738.0,0.15]
[1732471209432,0.002,95740.0,95739.0,0.052225]
[1732471209642,0.002,95743.0,95742.0,0.052223]
[1732471209857,0.002,95746.0,95738.0,0.202225]
[1732471210067,0.002,95740.0,95737.0,0.052226]
[1732471210291,0.002,95743.0,95735.0,0.052227]
[1732471210504,0.002,95743.0,95731.0,0.0008563]
[1732471210505,0.002,95740.0,95731.0,0.0008563]
[1732471211170,0.002,95732.0,95731.0,0.0530853]
[1732471211395,0.002,95736.0,95733.0,0.052228]
[1732471211600,0.002,95736.0,95731.0,0.0008563]
[1732471211804,0.002,95736.0,95732.0,0.052229]
[1732471212011,0.002,95736.0,95731.0,0.0008563]
[1732471212012,0.002,95736.0,95733.0,0.052228]
[1732471212450,0.002,95736.0,95734.0,0.052227]
[1732471212687,0.002,95736.0,95732.0,0.104457]
[1732471212899,0.002,95736.0,95732.0,0.052228]
[1732471213121,0.002,95736.0,95732.0,0.104456]
[1732471213327,0.002,95736.0,95733.0,0.052228]
[1732471213541,0.002,95732.0,95731.0,0.0008563]
[1732471213787,0.002,95735.0,95731.0,0.0008563]
[1732471214022,0.002,95733.0,95731.0,0.0008563]
[1732471214228,0.081,95741.0,95731.0,0.0008563]
[1732471214229,0.002,95732.0,95731.0,0.0008563]
[1732471214445,0.002,95732.0,95731.0,0.0530853]
[1732471215139,0.002,95732.0,95731.0,0.0008563]
[1732471215373,0.002,95736.0,95731.0,0.0530853]
[1732471215601,0.081,95741.0,95731.0,0.0530853]
[1732471215602,0.002,95735.0,95733.0,0.052228]
[1732471216510,0.002,95740.0,95734.0,0.052227]
[1732471216735,0.002,95736.0,95734.0,0.052227]
[1732471216966,0.002,95736.0,95733.0,0.052228]
[1732471217411,0.002,95736.0,95734.0,0.052227]
[1732471217686,0.002,95738.0,95735.0,0.052227]
[1732471217917,0.002,95736.0,95733.0,0.052228]
[1732471218142,0.002,95736.0,95733.0,0.104456]
[1732471218351,0.002,95736.0,95734.0,0.052227]
[1732471219644,0.002,95735.0,95731.0,0.0008563]
[1732471220068,0.002,95735.0,95731.0,0.0530853]
[1732471220287,0.002,95735.0,95731.0,0.1053143]
[1732471220519,0.002,95733.0,95732.0,0.052228]
[1732471220743,0.002,95733.0,95731.0,0.0530853]
[1732471220952,0.002,95736.0,95733.0,0.052228]
[1732471221610,0.002,95736.0,95734.0,0.052227]
[1732471221822,0.002,95736.0,95731.0,0.1053143]
[1732471222040,0.002,95735.0,95732.0,0.052228]
[1732471222263,0.002,95733.0,95731.0,0.1053143]
[1732471222480,0.002,95735.0,95731.0,0.0530853]
[1732471222738,0.002,95735.0,95733.0,0.052228]
[1732471222940,0.002,95736.0,95731.0,0.0008563]
[1732471223175,0.002,95736.0,95732.0,0.104456]
[1732471223401,0.002,95736.0,95732.0,0.052228]
[1732471223615,0.002,95736.0,95733.0,0.052228]
[1732471223836,0.002,95736.0,95731.0,0.0008563]
[1732471224334,0.002,95736.0,95732.0,0.052228]
[1732471224553,0.002,95736.0,95733.0,0.05202119]
[1732471225210,0.002,95736.0,95731.0,0.0008563]
[1732471225429,0.002,95735.0,95731.0,0.0530853]
[1732471225671,0.002,95735.0,95731.0,0.1053143]
[1732471225885,0.002,95736.0,95731.0,0.0530853]
[1732471226323,0.002,95735.0,95731.0,0.0530853]
[1732471226557,0.002,95735.0,95732.0,0.052228]
[1732471227070,0.20129177,95732.0,95731.0,0.0008563]
[1732471227295,0.19929177,95732.0,95731.0,0.0008563]
[1732471227512,0.30574977,95732.0,95731.0,0.0008563]
[1732471228206,0.38844977,95732.0,95731.0,0.0008563]
[1732471228426,0.43614977,95732.0,95731.0,0.0008563]
[1732471231588,0.43414977,95732.0,95731.0,0.0008563]
[1732471231804,0.43614977,95732.0,95731.0,0.0008563]
[1732471234842,0.53816404,95732.0,95731.0,0.0008563]
[1732471237318,0.73816404,95732.0,95731.0,0.0008563]
[1732471238886,0.74233604,95732.0,95731.0,0.0008563]
[1732471239764,0.54233604,95732.0,95731.0,0.0008563]
[1732471239984,0.53816404,95732.0,95731.0,0.0008563]
[1732471249084,0.53800207,95732.0,95731.0,0.0008563]
[1732471251816,0.0017108,95733.0,95731.0,0.0008563]
[1732471252109,0.0017108,95733.0,95732.0,0.052229]
[1732471252300,0.0017108,95733.0,95732.0,0.20078774]
[1732471252538,0.0017108,95733.0,95732.0,0.43378771]
[1732471252764,0.0017108,95733.0,95732.0,0.45574327]
[1732471252979,0.0017122,95747.0,95746.0,0.075221]
[1732471253206,0.0017122,95747.0,95746.0,0.32723527]
[1732471253645,0.0017122,95747.0,95746.0,0.39803527]
[1732471254746,0.0017122,95747.0,95746.0,0.37503527]
[1732471255503,0.0017122,95747.0,95746.0,0.40917243]
[1732471263621,0.0017122,95747.0,95746.0,0.33837243]
[1732471269788,0.0017122,95747.0,95725.0,0.0008702]
[1732471269986,0.0017122,95747.0,95710.0,0.09118726]
[1732471269987,0.0016122,95747.0,95734.0,0.10201427]
[1732471270223,0.0775,95746.0,95734.0,0.15424127]
[1732471270423,0.0775,95746.0,95740.0,0.052224]
[1732471270637,0.181943,95746.0,95738.0,0.052225]
[1732471270845,0.0775,95746.0,95734.0,0.10201427]
[1732471271056,0.0775,95746.0,95744.0,0.052222]
[1732471271293,0.0775,95746.0,95745.0,0.052222]
[1732471271712,0.0775,95746.0,95743.0,0.052222]
[1732471271928,0.0016122,95747.0,95746.0,0.052221]
[1732471272346,0.0016122,95747.0,95743.0,0.052222]
[1732471272576,0.0016122,95747.0,95745.0,0.052221]
[1732471273017,0.0016122,95747.0,95746.0,0.052221]
[1732471276569,0.0016122,95747.0,95746.0,0.18834468]
[1732471276815,0.0016122,95747.0,95746.0,0.33938899]
[1732471277038,0.0016122,95747.0,95746.0,0.36134468]
[1732471286498,0.0016122,95747.0,95746.0,0.36219988]
[1732471296264,0.0016122,95747.0,95746.0,0.0530762]
[1732471300049,0.1249122,95747.0,95746.0,0.0530762]
[1732471301944,0.0016122,95747.0,95746.0,0.15509047]
[1732471302174,0.0016122,95747.0,95746.0,0.30613478]
[1732471302410,0.0016122,95747.0,95746.0,0.30509047]
[1732471310233,0.0016122,95747.0,95746.0,0.32809047]
[1732471310436,0.0016122,95747.0,95746.0,0.32896067]
[1732471310649,0.0016122,95747.0,95746.0,0.65836067]
[1732471317166,0.0016122,95747.0,95746.0,0.97400369]
[1732471317370,0.0016122,95747.0,95746.0,0.65836067]
[1732471317728,1.0027128,95755.0,95746.0,0.65836067]
[1732471317729,1.0027128,95755.0,95754.0,0.4030872]
[1732471317957,0.9609388,95755.0,95754.0,0.84374772]
[1732471318153,0.9191648,95755.0,95754.0,0.65830147]
[1732471318358,0.8147298,95755.0,95754.0,0.65830147]
[1732471321014,0.8147298,95755.0,95754.0,0.69285409]
[1732471325307,0.8147298,95755.0,95754.0,0.56265409]
[1732471325530,0.8147298,95755.0,95754.0,0.33878389]
[1732471325709,0.8147298,95755.0,95754.0,0.33965409]
[1732471325908,0.8147298,95755.0,95754.0,0.33878389]
[1732471326148,0.8147298,95755.0,95754.0,0.53965409]
[1732471326352,0.77523015,95755.0,95754.0,0.67115409]
[1732471326561,0.76712764,95755.0,95754.0,0.69415409]
[1732471326787,0.63956505,95755.0,95754.0,0.69415409]
[1732471327229,0.63164785,95755.0,95754.0,0.69415409]
[1732471327439,0.56073404,95755.0,95754.0,0.69415409]
[1732471327651,0.51896004,95755.0,95754.0,0.69415409]
[1732471328372,0.49807304,95755.0,95754.0,0.69415409]
[1732471328596,0.40952504,95755.0,95754.0,0.69415409]
[1732471329446,0.28124004,95755.0,95754.0,0.69415409]
[1732471330306,0.26035304,95755.0,95754.0,0.69415409]
[1732471330549,0.17680504,95755.0,95754.0,0.69415409]
[1732471331415,0.04697578,95755.0,95754.0,0.69415409]
[1732471331622,0.02608878,95755.0,95754.0,0.69415409]
[1732471332491,7.8e-07,95755.0,95754.0,0.69415409]
[1732471332914,7.8e-07,95755.0,95754.0,0.69500929]
[1732471333377,7.8e-07,95755.0,95754.0,0.54050929]
[1732471333624,7.8e-07,95755.0,95754.0,0.18963909]
[1732471334682,7.8e-07,95755.0,95754.0,0.19050929]
[1732471334891,7.8e-07,95755.0,95754.0,0.33963909]
[1732471335307,7.8e-07,95755.0,95754.0,0.36350929]
[1732471335736,7.8e-07,95755.0,95754.0,0.36263909]
[1732471336403,7.8e-07,95755.0,95754.0,0.36350929]
[1732471337241,0.0764,95770.0,95769.0,0.041767]
[1732471337439,0.0764,95770.0,95769.0,0.14378127]
[1732471337877,0.0764,95770.0,95769.0,0.29378127]
[1732471342322,0.0764,95770.0,95769.0,0.32833818]
[1732471344596,0.0781104,95770.0,95769.0,0.32833818]
[1732471347045,0.0781104,95770.0,95769.0,0.35133818]
[1732471353772,0.0017104,95770.0,95769.0,0.35133818]
[1732471360443,0.0017104,95770.0,95769.0,0.55220838]
[1732471361581,4e-07,95770.0,95769.0,0.67430838]
[1732471361789,0.0017116,95781.0,95780.0,0.5377322]
[1732471362003,0.0017116,95781.0,95780.0,0.63974647]
[1732471365336,0.0017116,95781.0,95780.0,0.6735559]
[1732471367239,0.0489,95815.0,95813.0,0.041747]
[1732471367240,0.0776,95814.0,95813.0,0.041747]
[1732471367469,0.0776,95814.0,95813.0,0.16676127]
[1732471369574,0.0776,95814.0,95813.0,0.31676127]
[1732471369791,0.0776,95821.0,95820.0,0.041744]
[1732471370017,0.0776,95821.0,95820.0,0.16675827]
[1732471370964,0.0776,95821.0,95820.0,0.31675827]
[1732471372370,0.0017128,95823.0,95820.0,0.31675827]
[1732471372603,0.0017128,95823.0,95822.0,0.31675827]
[1732471373345,0.0017128,95823.0,95822.0,0.31762847]
[1732471374228,0.0017128,95823.0,95822.0,0.51762847]
[1732471376952,6e-07,95825.0,95824.0,0.2426132]
[1732471377177,6e-07,95825.0,95824.0,0.49462747]
[1732471377394,6e-07,95825.0,95824.0,0.51762747]
[1732471378054,6e-07,95825.0,95824.0,0.29462747]
[1732471378742,6e-07,95825.0,95824.0,0.49462747]